fUSD/lending_fUSD_20260118
["ID","MTS","AMOUNT","RATE_DAILY","PERIOD"]
[402543358,1768704640754,-500.0,0.00014669,2]
[402543359,1768704640765,-151.0,0.00014669,2]
[402543360,1768704640776,-151.0,0.00014669,2]
[402543361,1768704640786,-151.0,0.00014669,2]
[402543362,1768704640797,-151.0,0.00014669,2]
[402543363,1768704640807,-151.0,0.00014669,2]
[402543364,1768704640817,-151.0,0.00014669,2]
[402543365,1768704640827,-151.0,0.00014669,2]
[402543366,1768704640838,-277.9722954,0.00014669,2]
[402543367,1768704640848,-201.84989659,0.00014669,2]
[402543368,1768704640862,-500.0,0.00014669,2]
[402543369,1768704640872,-1147.865,0.00014677,2]
[402543370,1768704640882,-179.225,0.00014677,2]
[402543371,1768704640892,-500.0,0.00014691,2]
[402543372,1768704640902,-203.50567429,0.00014691,2]
[402543373,1768704640912,-158.70596761,0.00014691,2]
[402543374,1768704640921,-500.0,0.00014691,2]
[402543375,1768704640931,-150.0,0.00014691,2]
[402543376,1768704640941,-500.0,0.00014691,2]
[402543377,1768704640951,-276.47217329,0.000147,2]
[402543378,1768704640961,-19684.80200932,0.00014711,2]
[402543379,1768704640971,-697.6433995,0.00014711,2]
[402543380,1768704640981,-500.0,0.00014746,2]
[402543381,1768704640992,-500.0,0.00014746,2]
[402543382,1768704641010,-179.48488052,0.00014746,2]
[402543383,1768704641024,-500.0,0.00014746,2]
[402543384,1768704641034,-1874.84,0.00014746,2]
[402543385,1768704641044,-166.66,0.00014746,2]
[402543386,1768704641054,-256.2383048,0.00014754,2]
[402543387,1768704641065,-503.1843055,0.00014754,2]
[402543388,1768704641075,-321.60422493,0.00014754,2]
[402543389,1768704641085,-1100.0,0.000148,5]
[402543390,1768704641095,-500.0,0.00014801,2]
[402543391,1768704641105,-500.0,0.00014801,2]
[402543392,1768704641114,-500.0,0.00014801,2]
[402543393,1768704641123,-890.71214736,0.00014801,2]
[402543394,1768704641133,-55154.9232445,0.00014811,2]
[402543395,1768704641142,-233.98301714,0.0001483,2]
[402543396,1768704641151,-300.0,0.0001483,2]
[402543397,1768704641162,-250.0,0.0001483,2]
[402543398,1768704641173,-1600.0,0.00014846,2]
[402543399,1768704641183,-476.11068769,0.00014853,2]
[402543400,1768704641194,-600.0,0.00014853,2]
[402543401,1768704641205,-600.0,0.00014853,2]
[402543402,1768704641215,-600.0,0.00014853,2]
[402543403,1768704641225,-600.0,0.00014853,2]
[402543404,1768704641234,-238.67364673,0.00014853,2]
[402543405,1768704641243,-195.0,0.00014853,2]
[402543406,1768704641259,-300.0,0.00014853,2]
[402543407,1768704641269,-252.94927713,0.00014853,2]
[402543408,1768704641279,-195.0,0.00014853,2]
[402543409,1768704641290,-1082.63660094,0.00014853,2]
[402543410,1768704641300,-500.0,0.00014854,2]
[402543411,1768704641310,-508.48556466,0.00014854,2]
[402543412,1768704641320,-500.0,0.00014854,2]
[402543413,1768704641329,-500.0,0.00014854,2]
[402543414,1768704641339,-500.0,0.00014854,2]
[402543415,1768704641348,-500.0,0.00014854,2]
[402543416,1768704641357,-533.20641898,0.00014854,2]
[402543417,1768704641367,-500.0,0.00014854,2]
[402543418,1768704641376,-184.40223428,0.00014854,2]
[402543419,1768704641385,-506.32694105,0.00014854,2]
[402543420,1768704641395,-500.0,0.00014854,2]
[402543421,1768704641405,-500.0,0.00014854,2]
[402543422,1768704641416,-500.0,0.00014854,2]
[402543423,1768704641425,-500.0,0.00014854,2]
[402543424,1768704641435,-500.0,0.00014854,2]
[402543425,1768704641444,-511.86882252,0.00014854,2]
[402543426,1768704641454,-500.0,0.00014856,2]
[402543427,1768704641464,-500.0,0.00014856,2]
[402543428,1768704641474,-500.0,0.00014856,2]
[402543429,1768704641483,-420.0,0.00014869,2]
[402543430,1768704641493,-2300.0,0.000149,5]
[402543431,1768704641503,-257.51653588,0.0001491,2]
[402543432,1768704641513,-500.0,0.0001491,2]
[402543433,1768704641524,-500.0,0.0001491,2]
[402543434,1768704641534,-1680.0,0.00014923,2]
[402543435,1768704641543,-387.57429082,0.00014965,2]
[402543436,1768704641553,-500.0,0.00014965,2]
[402543437,1768704641562,-156.15,0.00014978,2]
[402543438,1768704641571,-500.0,0.00015018,2]
[402543439,1768704641581,-506.97630376,0.00015018,2]
[402543440,1768704641591,-649.86,0.00015019,2]
[402543441,1768704641600,-500.0,0.0001502,2]
[402543442,1768704641609,-1874.84,0.0001502,2]
[402543443,1768704641619,-1215.42998931,0.00015039,2]
[402543444,1768704641630,-19684.80200927,0.00015044,2]
[402543445,1768704641645,-500.0,0.00015075,2]
[402543446,1768704641655,-500.0,0.0001513,2]
[402543447,1768704641666,-500.0,0.00015184,2]
[402543448,1768704641676,-500.0,0.00015217,2]
[402543449,1768704641689,-500.0,0.00015239,2]
[402543450,1768704641699,-160.06,0.00015243,2]
[402543451,1768704641709,-150.0,0.00015263,2]
[402543452,1768704641719,-150.0,0.00015263,2]
[402543453,1768704641728,-150.0,0.00015263,2]
[402543454,1768704641738,-150.0,0.00015263,2]
[402543455,1768704641747,-150.0,0.00015263,2]
[402543456,1768704641758,-150.0,0.00015263,2]
[402543457,1768704641768,-150.0,0.00015263,2]
[402543458,1768704641778,-150.0,0.00015263,2]
[402543459,1768704641788,-150.0,0.00015263,2]
[402543460,1768704641798,-150.0,0.00015263,2]
[402543461,1768704642127,-150.0,0.00015263,2]
[402543462,1768704642137,-150.0,0.00015263,2]
[402543463,1768704642146,-150.0,0.00015263,2]
[402543464,1768704642156,-150.0,0.00015263,2]
[402543465,1768704642165,-150.0,0.00015293,2]
[402543466,1768704642176,-500.0,0.00015294,2]
[402543467,1768704642185,-1874.84,0.00015294,2]
[402543468,1768704642194,-150.0,0.00015323,2]
[402543469,1768704642204,-276.47217329,0.00015334,2]
[402543470,1768704642213,-150.0,0.00015335,2]
[402543471,1768704642223,-150.0,0.00015335,2]
[402543472,1768704642232,-500.0,0.00015335,2]
[402543473,1768704642242,-160.85120225,0.00015335,2]
[402543474,1768704642251,-150.0,0.00015344,2]
[402543475,1768704642261,-500.0,0.00015349,2]
[402543476,1768704642270,-150.0,0.00015352,2]
[402543477,1768704642281,-150.0,0.00015357,2]
[402543478,1768704642290,-150.0,0.00015363,2]
[402543479,1768704642300,-662.74,0.00015367,2]
[402543480,1768704642310,-150.0,0.00015369,2]
[402543481,1768704642319,-19684.80200927,0.00015377,2]
[402543482,1768704642329,-150.0,0.00015382,2]
[402543483,1768704642339,-239.03553082,0.00015383,2]
[402543484,1768704642348,-153.00604463,0.0001539,2]
[402543485,1768704642358,-150.0,0.0001539,2]
[402543486,1768704642368,-500.0,0.0001539,2]
[402543487,1768704642378,-150.0,0.00015393,2]
[402543488,1768704642388,-480.0,0.00015404,2]
[402543489,1768704642398,-150.0,0.00015404,2]
[402543490,1768704642407,-402.24780221,0.00015411,2]
[402543491,1768704642417,-150.0,0.00015412,2]
[402543493,1768704642427,-150.0,0.00015425,2]
[402543495,1768704642436,-150.0,0.00015442,2]
[402543497,1768704642446,-150.0,0.00015445,2]
[402543499,1768704642456,-501.86548223,0.00015445,2]
[402543500,1768704642465,-150.0,0.00015451,2]
[402543501,1768704642475,-150.0,0.00015463,2]
[402543503,1768704642485,-150.0,0.00015471,2]
[402543506,1768704642495,-150.0,0.00015475,2]
[402543507,1768704642505,-150.0,0.00015475,2]
[402543508,1768704642515,-150.0,0.00015499,2]
[402543509,1768704642524,-150.0,0.00015501,2]
[402543511,1768704642534,-150.0,0.00015505,2]
[402543513,1768704642543,-150.0,0.00015524,2]
[402543515,1768704642554,-150.0,0.00015531,2]
[402543517,1768704642563,-150.0,0.00015546,2]
[402543519,1768704642573,-150.0,0.00015546,2]
[402543521,1768704642582,-150.0,0.00015554,2]
[402543525,1768704642592,-150.0,0.00015561,2]
[402543529,1768704642601,-150.0,0.00015562,2]
[402543532,1768704642610,-1874.84,0.00015568,2]
[402543537,1768704642619,-150.0,0.00015581,2]
[402543540,1768704642629,-150.0,0.00015586,2]
[402543543,1768704642638,-150.0,0.0001559,2]
[402543545,1768704642647,-150.0,0.00015602,2]
[402543546,1768704642656,-250.0,0.00015609,2]
[402543548,1768704642666,-150.0,0.00015611,2]
[402543550,1768704642677,-150.60019959,0.00015611,2]
[402543551,1768704642690,-150.0,0.00015611,2]
[402543553,1768704642700,-150.0,0.0001562,2]
[402543554,1768704642709,-2165.09239849,0.00015626,2]
[402543555,1768704642719,-150.0,0.0001564,2]
[402543556,1768704642729,-150.0,0.0001565,2]
[402543557,1768704642738,-150.0,0.00015654,2]
[402543558,1768704642748,-150.0,0.00015662,2]
[402543559,1768704642760,-150.0,0.00015666,2]
[402543560,1768704642770,-150.0,0.00015666,2]
[402543561,1768704642779,-150.0,0.00015667,2]
[402543562,1768704642789,-200.0,0.00015675,2]
[402543563,1768704642798,-150.0,0.0001568,2]
[402543564,1768704642808,-150.0,0.00015687,2]
[402543565,1768704642817,-150.0,0.00015687,2]
[402543566,1768704642827,-150.0,0.00015687,2]
[402543567,1768704642836,-150.0,0.00015687,2]
[402543568,1768704642846,-150.0,0.00015687,2]
[402543569,1768704642856,-150.0,0.00015709,2]
[402543570,1768704642867,-19684.80200927,0.0001571,2]
[402543571,1768704642877,-202.14188137,0.00015721,2]
[402543572,1768704642887,-204.07775139,0.00015721,2]
[402543573,1768704642897,-150.0,0.00015734,2]
[402543574,1768704642907,-649.86,0.00015735,2]
[402543575,1768704642918,-150.0,0.00015739,2]
[402543576,1768704642930,-150.0,0.00015748,2]
[402543577,1768704642941,-150.0,0.00015762,2]
[402543578,1768704642951,-156.15,0.00015767,2]
[402543579,1768704642961,-150.0,0.00015769,2]
[402543580,1768704642971,-150.0,0.00015785,2]
[402543581,1768704642981,-150.0,0.00015793,2]
[402543582,1768704642991,-255.0,0.00015798,2]
[402543583,1768704643000,-150.0,0.00015799,2]
[402543584,1768704643011,-420.62026613,0.00015813,2]
[402543585,1768704643021,-150.0,0.00015828,2]
[402543586,1768704643031,-150.0,0.00015828,2]
[402543587,1768704643041,-150.0,0.00015828,2]
[402543588,1768704643051,-150.0,0.00015828,2]
[402543589,1768704643061,-483.68,0.00015841,2]
[402543590,1768704643071,-1874.84,0.00015842,2]
[402543591,1768704643081,-150.0,0.00015858,2]
[402543592,1768704643091,-150.0,0.00015862,2]
[402543593,1768704643100,-150.0,0.00015888,2]
[402543594,1768704643110,-150.0,0.00015899,2]
[402543595,1768704643120,-150.0,0.00015899,2]
[402543596,1768704643131,-3500.0,0.000159,5]
[402543597,1768704643142,-150.0,0.00015909,2]
[402543598,1768704643152,-150.0,0.00015915,2]
[402543599,1768704643162,-150.0,0.00015918,2]
[402543601,1768704643171,-150.0,0.00015923,2]
[402543603,1768704643180,-150.0,0.00015941,2]
[402543605,1768704643190,-150.0,0.00015947,2]
[402543607,1768704643200,-179.45,0.0001595,2]
[402543608,1768704643210,-150.0,0.00015961,2]
[402543610,1768704643220,-276.47217329,0.00015967,2]
[402543611,1768704643230,-150.0,0.0001597,2]
[402543612,1768704643239,-150.0,0.00015977,2]
[402543613,1768704643249,-467.7,0.00015978,2]
[402543614,1768704643259,-150.0,0.0001599,2]
[402543615,1768704643269,-150.0,0.00016005,2]
[402543616,1768704643278,-150.0,0.00016007,2]
[402543617,1768704643288,-150.0,0.00016017,2]
[402543618,1768704643298,-567.8712304,0.00016027,2]
[402543619,1768704643309,-150.0,0.00016037,2]
[402543620,1768704643318,-19684.80200927,0.00016043,2]
[402543621,1768704643328,-150.0,0.00016046,2]
[402543622,1768704643337,-150.0,0.00016061,2]
[402543623,1768704643346,-198.9,0.00016063,2]
[402543624,1768704643356,-150.0,0.00016066,2]
[402543625,1768704643365,-9000.0,0.00016067,2]
[402543626,1768704643375,-620.0,0.00016067,2]
[402543627,1768704643384,-9000.0,0.00016067,2]
[402543628,1768704643393,-9000.0,0.00016067,2]
[402543629,1768704643403,-9000.0,0.00016067,2]
[402543630,1768704643412,-578.20924308,0.00016067,2]
[402543631,1768704643422,-9000.0,0.00016067,2]
[402543632,1768704643432,-9000.0,0.00016067,2]
[402543633,1768704643442,-9000.0,0.00016067,2]
[402543634,1768704643452,-9000.0,0.00016067,2]
[402543635,1768704643462,-174.61919141,0.00016067,2]
[402543636,1768704643472,-500.0,0.00016067,2]
[402543637,1768704643481,-1000.0,0.00016067,2]
[402543638,1768704643491,-9000.0,0.00016067,2]
[402543639,1768704643501,-500.0,0.00016067,2]
[402543640,1768704643511,-1000.0,0.00016067,2]
[402543641,1768704643520,-9000.0,0.00016067,2]
[402543642,1768704643533,-2473.97125243,0.00016067,2]
[402543643,1768704643549,-500.0,0.00016067,2]
[402543644,1768704643559,-1000.0,0.00016067,2]
[402543645,1768704643568,-4000.0,0.00016067,2]
[402543646,1768704643578,-500.0,0.00016067,2]
[402543647,1768704643587,-1000.0,0.00016067,2]
[402543648,1768704643597,-500.0,0.00016067,2]
[402543649,1768704643606,-4000.0,0.00016067,2]
[402543650,1768704643617,-1000.0,0.00016067,2]
[402543651,1768704643628,-500.0,0.00016067,2]
[402543652,1768704643638,-4000.0,0.00016067,2]
[402543653,1768704643650,-1000.0,0.00016067,2]
[402543654,1768704643661,-500.0,0.00016067,2]
[402543655,1768704643670,-1000.0,0.00016067,2]
[402543656,1768704643687,-500.0,0.00016067,2]
[402543657,1768704643699,-1000.0,0.00016067,2]
[402543658,1768704643708,-531.95092078,0.00016067,2]
[402543659,1768704643718,-1000.0,0.00016067,2]
[402543660,1768704643727,-4000.0,0.00016067,2]
[402543661,1768704643737,-1000.0,0.00016067,2]
[402543662,1768704643746,-3857.1926078,0.00016067,2]
[402543663,1768704643755,-4000.0,0.00016067,2]
[402543664,1768704643764,-1000.0,0.00016067,2]
[402543665,1768704643774,-4000.0,0.00016067,2]
[402543666,1768704643784,-4000.0,0.00016067,2]
[402543667,1768704643794,-151.18171079,0.00016067,2]
[402543668,1768704643803,-4000.0,0.00016067,2]
[402543669,1768704643812,-4000.0,0.00016067,2]
[402543670,1768704643821,-250.0,0.00016067,2]
[402543671,1768704643831,-4000.0,0.00016067,2]
[402543672,1768704643840,-4100.68264686,0.00016067,2]
[402543673,1768704643850,-250.0,0.00016067,2]
[402543674,1768704643859,-322.6107,0.00016067,2]
[402543675,1768704643868,-250.0,0.00016067,2]
[402543676,1768704643878,-250.0,0.00016067,2]
[402543677,1768704643887,-250.0,0.00016067,2]
[402543678,1768704643897,-3000.0,0.00016067,2]
[402543679,1768704643908,-250.0,0.00016067,2]
[402543680,1768704643918,-3000.0,0.00016067,2]
[402543681,1768704643927,-209.40437684,0.00016067,2]
[402543682,1768704643937,-250.0,0.00016067,2]
[402543683,1768704643947,-3019.73245862,0.00016067,2]
[402543684,1768704643957,-250.0,0.00016067,2]
[402543685,1768704643966,-276.66726776,0.00016067,2]
[402543686,1768704643976,-4001.0,0.00016067,2]
[402543687,1768704643985,-574.12855637,0.00016067,2]
[402543688,1768704643995,-250.0,0.00016067,2]
[402543689,1768704644015,-250.0,0.00016067,2]
[402543690,1768704644025,-2000.0,0.00016067,2]
[402543691,1768704644034,-250.0,0.00016067,2]
[402543692,1768704644044,-2000.0,0.00016067,2]
[402543693,1768704644053,-250.0,0.00016067,2]
[402543694,1768704644062,-2000.0,0.00016067,2]
[402543695,1768704644071,-250.0,0.00016067,2]
[402543696,1768704644081,-2000.0,0.00016067,2]
[402543697,1768704644090,-250.0,0.00016067,2]
[402543698,1768704644100,-2000.0,0.00016067,2]
[402543699,1768704644109,-250.0,0.00016067,2]
[402543700,1768704644119,-2000.0,0.00016067,2]
[402543701,1768704644128,-250.0,0.00016067,2]
[402543702,1768704644137,-2000.0,0.00016067,2]
[402543703,1768704644147,-250.0,0.00016067,2]
[402543704,1768704644157,-2000.0,0.00016067,2]
[402543705,1768704644169,-250.0,0.00016067,2]
[402543706,1768704644179,-2000.0,0.00016067,2]
[402543707,1768704644190,-250.0,0.00016067,2]
[402543708,1768704644201,-2000.0,0.00016067,2]
[402543709,1768704644212,-721.12765535,0.00016067,2]
[402543710,1768704644221,-2049.55457802,0.00016067,2]
[402543711,1768704644231,-151.0,0.00016067,2]
[402543712,1768704644242,-151.0,0.00016067,2]
[402543713,1768704644252,-1500.0,0.00016067,2]
[402543714,1768704644263,-194.27224671,0.00016067,2]
[402543715,1768704644273,-500.0,0.00016067,2]
[402543716,1768704644282,-1500.0,0.00016067,2]
[402543717,1768704644291,-500.0,0.00016067,2]
[402543718,1768704644300,-1500.0,0.00016067,2]
[402543719,1768704644309,-500.0,0.00016067,2]
[402543720,1768704644318,-1500.0,0.00016067,2]
[402543721,1768704644328,-500.0,0.00016067,2]
[402543722,1768704644337,-1500.0,0.00016067,2]
[402543723,1768704644347,-500.0,0.00016067,2]
[402543724,1768704644358,-1500.0,0.00016067,2]
[402543725,1768704644368,-500.0,0.00016067,2]
[402543726,1768704644377,-1500.0,0.00016067,2]
[402543727,1768704644387,-500.0,0.00016067,2]
[402543728,1768704644397,-1500.0,0.00016067,2]
[402543729,1768704644407,-500.0,0.00016067,2]
[402543730,1768704644416,-1500.0,0.00016067,2]
[402543731,1768704644426,-500.0,0.00016067,2]
[402543732,1768704644436,-1500.0,0.00016067,2]
[402543733,1768704644450,-500.0,0.00016067,2]
[402543734,1768704644459,-1500.0,0.00016067,2]
[402543735,1768704644468,-500.0,0.00016067,2]
[402543736,1768704644836,-500.0,0.00016067,2]
[402543737,1768704644852,-500.0,0.00016067,2]
[402543738,1768704644862,-500.0,0.00016067,2]
[402543739,1768704644871,-500.0,0.00016067,2]
[402543740,1768704644880,-500.0,0.00016067,2]
[402543741,1768704644890,-500.0,0.00016067,2]
[402543742,1768704644899,-500.0,0.00016067,2]
[402543743,1768704644910,-500.0,0.00016067,2]
[402543744,1768704644920,-500.0,0.00016067,2]
[402543745,1768704644930,-500.0,0.00016067,2]
[402543746,1768704644939,-500.0,0.00016067,2]
[402543747,1768704644949,-150.0,0.00016071,2]
[402543748,1768704644958,-1001.34,0.00016082,2]
[402543749,1768704644967,-150.0,0.00016096,2]
[402543750,1768704644977,-150.0,0.00016111,2]
[402543751,1768704644986,-150.0,0.00016111,2]
[402543752,1768704644996,-150.0,0.00016111,2]
[402543753,1768704645006,-150.0,0.00016111,2]
[402543754,1768704645015,-150.0,0.00016111,2]
[402543755,1768704645024,-150.0,0.00016111,2]
[402543756,1768704645034,-150.0,0.00016111,2]
[402543757,1768704645043,-1874.84,0.00016116,2]
[402543758,1768704645053,-9000.0,0.00016122,2]
[402543759,1768704645064,-150.0,0.00016126,2]
[402543760,1768704645074,-150.0,0.00016151,2]
[402543761,1768704645083,-150.0,0.00016156,2]
[402543762,1768704645092,-150.0,0.00016161,2]
[402543763,1768704645102,-150.0,0.00016176,2]
[402543764,1768704645112,-9000.0,0.00016177,2]
[402543765,1768704645121,-150.0,0.00016185,2]
[402543766,1768704645131,-500.0,0.00016199,2]
[402543767,1768704645140,-539.42217884,0.00016199,2]
[402543768,1768704645149,-150.0,0.00016205,2]
[402543769,1768704645159,-150.0,0.00016215,2]
[402543770,1768704645169,-150.0,0.00016217,2]
[402543771,1768704645179,-9000.0,0.00016232,2]
[402543772,1768704645189,-150.0,0.00016232,2]
[402543773,1768704645208,-150.0,0.00016245,2]
[402543774,1768704645218,-150.0,0.00016252,2]
[402543775,1768704645227,-150.0,0.00016261,2]
[402543776,1768704645237,-150.0,0.00016275,2]
[402543777,1768704645246,-150.0,0.00016281,2]
[402543778,1768704645256,-9000.0,0.00016287,2]
[402543779,1768704645266,-587.0,0.00016297,2]
[402543780,1768704645275,-150.0,0.00016299,2]
[402543781,1768704645284,-150.0,0.00016304,2]
[402543782,1768704645294,-150.0,0.00016307,2]
[402543783,1768704645303,-150.0,0.00016313,2]
[402543784,1768704645312,-150.0,0.00016323,2]
[402543785,1768704645322,-150.0,0.00016323,2]
[402543786,1768704645332,-662.74,0.00016326,2]
[402543787,1768704645342,-662.74,0.00016328,2]
[402543788,1768704645354,-662.74,0.00016328,2]
[402543789,1768704645365,-1337.33,0.00016328,2]
[402543790,1768704645375,-662.88,0.00016328,2]
[402543791,1768704645387,-150.0,0.00016334,2]
[402543792,1768704645398,-1000.0,0.0001634,2]
[402543793,1768704645407,-9000.0,0.00016342,2]
[402543794,1768704645417,-500.0,0.00016356,2]
[402543795,1768704645427,-500.0,0.00016356,2]
[402543796,1768704645436,-800.0,0.00016356,2]
[402543797,1768704645446,-150.0,0.0001636,2]
[402543798,1768704645455,-150.0,0.00016364,2]
[402543799,1768704645465,-19684.80200927,0.00016376,2]
[402543800,1768704645474,-1874.84,0.0001639,2]
[402543801,1768704645483,-150.0,0.00016394,2]
[402543802,1768704645492,-150.0,0.00016394,2]
[402543803,1768704645502,-150.0,0.00016394,2]
[402543804,1768704645511,-150.0,0.00016394,2]
[402543805,1768704645520,-9000.0,0.00016397,2]
[402543806,1768704645530,-296.98,0.000164,2]
[402543807,1768704645539,-2351.0,0.00016415,2]
[402543808,1768704645548,-150.0,0.00016423,2]
[402543809,1768704645558,-150.0,0.00016429,2]
[402543810,1768704645567,-179.52,0.00016434,2]
[402543811,1768704645576,-158.99,0.00016437,2]
[402543812,1768704645585,-483.42739922,0.00016437,2]
[402543813,1768704645594,-150.0,0.00016437,2]
[402543814,1768704645604,-150.0,0.00016437,2]
[402543815,1768704645613,-1376.63289992,0.00016438,2]
[402543816,1768704645622,-995.26004903,0.00016438,2]
[402543817,1768704645631,-500.0,0.00016438,2]
[402543818,1768704645640,-500.0,0.00016438,2]
[402543819,1768704645649,-500.0,0.00016438,2]
[402543820,1768704645659,-500.0,0.00016438,2]
[402543821,1768704645668,-500.0,0.00016438,2]
[402543822,1768704645678,-506.52123948,0.00016438,2]
[402543823,1768704645692,-500.0,0.00016438,2]
[402543824,1768704645703,-500.0,0.00016438,2]
[402543825,1768704645713,-500.0,0.00016438,2]
[402543826,1768704645723,-524.58,0.00016438,2]
[402543827,1768704645733,-660.78,0.00016438,2]
[402543828,1768704645743,-500.0,0.00016438,2]
[402543829,1768704645752,-500.0,0.00016438,2]
[402543830,1768704645763,-507.84151662,0.00016438,2]
[402543831,1768704645773,-500.0,0.00016438,2]
[402543832,1768704645782,-500.0,0.00016438,2]
[402543833,1768704645791,-500.0,0.00016438,2]
[402543834,1768704645801,-511.59113891,0.00016438,2]
[402543835,1768704645811,-500.0,0.00016438,2]
[402543836,1768704645820,-599.82,0.00016438,2]
[402543837,1768704645829,-504.67740922,0.00016438,2]
[402543838,1768704645839,-500.0,0.00016438,2]
[402543839,1768704645848,-500.0,0.00016438,2]
[402543840,1768704645858,-500.0,0.00016438,2]
[402543841,1768704645868,-500.0,0.00016438,2]
[402543842,1768704645877,-500.0,0.00016438,2]
[402543843,1768704645888,-719.96,0.00016438,2]
[402543844,1768704645898,-853.29,0.00016438,2]
[402543845,1768704645907,-500.0,0.00016438,2]
[402543846,1768704645917,-500.0,0.00016438,2]
[402543847,1768704645926,-500.0,0.00016438,2]
[402543848,1768704645936,-500.0,0.00016438,2]
[402543849,1768704645946,-510.96355385,0.00016438,2]
[402543850,1768704645956,-500.0,0.00016438,2]
[402543851,1768704645965,-554.1,0.00016438,2]
[402543852,1768704645975,-506.50816436,0.00016438,2]
[402543853,1768704645984,-500.0,0.00016438,2]
[402543854,1768704645995,-180.68495298,0.00016438,2]
[402543855,1768704646004,-500.0,0.00016438,2]
[402543856,1768704646014,-503.76661777,0.00016438,2]
[402543857,1768704646024,-500.0,0.00016438,2]
[402543858,1768704646033,-500.0,0.00016438,2]
[402543859,1768704646043,-500.0,0.00016438,2]
[402543860,1768704646052,-508.49,0.00016438,2]
[402543861,1768704646062,-500.0,0.00016438,2]
[402543862,1768704646071,-506.56,0.00016438,2]
[402543863,1768704646081,-500.0,0.00016438,2]
[402543864,1768704646090,-500.0,0.00016438,2]
[402543865,1768704646099,-500.0,0.00016438,2]
[402543866,1768704646109,-511.37268471,0.00016438,2]
[402543867,1768704646118,-500.0,0.00016438,2]
[402543868,1768704646128,-500.0,0.00016438,2]
[402543869,1768704646138,-500.0,0.00016438,2]
[402543870,1768704646147,-663.4,0.00016438,2]
[402543871,1768704646157,-500.0,0.00016438,2]
[402543872,1768704646166,-500.0,0.00016438,2]
[402543873,1768704646176,-767.04,0.00016438,2]
[402543874,1768704646185,-500.0,0.00016438,2]
[402543875,1768704646195,-500.0,0.00016438,2]
[402543876,1768704646204,-500.0,0.00016438,2]
[402543877,1768704646214,-500.0,0.00016438,2]
[402543878,1768704646223,-500.0,0.00016438,2]
[402543879,1768704646232,-591.99,0.00016438,2]
[402543880,1768704646242,-500.0,0.00016438,2]
[402543881,1768704646251,-500.0,0.00016438,2]
[402543882,1768704646261,-504.43709326,0.00016438,2]
[402543883,1768704646271,-1071.78,0.00016438,2]
[402543884,1768704646280,-500.0,0.00016438,2]
[402543885,1768704646289,-500.0,0.00016438,2]
[402543886,1768704646302,-502.68160409,0.00016438,2]
[402543887,1768704646311,-500.0,0.00016438,2]
[402543888,1768704646320,-500.0,0.00016438,2]
[402543889,1768704646330,-500.0,0.00016438,2]
[402543890,1768704646340,-500.0,0.00016438,2]
[402543891,1768704646349,-500.0,0.00016438,2]
[402543892,1768704646358,-500.0,0.00016438,2]
[402543893,1768704646367,-500.0,0.00016438,2]
[402543894,1768704646376,-500.0,0.00016438,2]
[402543895,1768704646386,-500.0,0.00016438,2]